lending/lending_fUSD_20240202
["ID","MTS","AMOUNT","RATE_DAILY","PERIOD"]
[313176962,1706885451127,-151.0,0.00041096,14]
[313176963,1706885451136,-151.0,0.00041096,14]
[313176964,1706885451146,-151.0,0.00041096,14]
[313176965,1706885451156,-169.040614,0.00041096,14]
[313176966,1706885451166,-256.401202,0.00041096,14]
[313176967,1706885451175,-256.401202,0.00041096,14]
[313176968,1706885451184,-256.401202,0.00041096,14]
[313176969,1706885451193,-256.401202,0.00041096,14]
[313176970,1706885451202,-256.401202,0.00041096,14]
[313176971,1706885451212,-256.401202,0.00041096,14]
[313176972,1706885451221,-256.401202,0.00041096,14]
[313176973,1706885451231,-256.401202,0.00041096,14]
[313176974,1706885451240,-256.401202,0.00041096,14]
[313176975,1706885451249,-256.401202,0.00041096,14]
[313176976,1706885451258,-256.401202,0.00041096,14]
[313176977,1706885451267,-256.401202,0.00041096,14]
[313176978,1706885451277,-256.401202,0.00041096,14]
[313176979,1706885451286,-256.401202,0.00041096,14]
[313176980,1706885451299,-256.401202,0.00041096,14]
[313176981,1706885451308,-256.401202,0.00041096,14]
[313176982,1706885451318,-256.401202,0.00041096,14]
[313176983,1706885451327,-256.401202,0.00041096,14]
[313176984,1706885451336,-256.401202,0.00041096,14]
[313176985,1706885451346,-256.401192,0.00041096,14]
[313176986,1706885451355,-182.720423,0.00041096,14]
[313176987,1706885451364,-182.720423,0.00041096,14]
[313176988,1706885451373,-182.720423,0.00041096,14]
[313176989,1706885451383,-182.720423,0.00041096,14]
[313176990,1706885451392,-182.720423,0.00041096,14]
[313176991,1706885451402,-182.720423,0.00041096,14]
[313176992,1706885451414,-182.720423,0.00041096,14]
[313176993,1706885451423,-182.720423,0.00041096,14]
[313176994,1706885451433,-182.720423,0.00041096,14]
[313176995,1706885451442,-182.720423,0.00041096,14]
[313176996,1706885451452,-182.720423,0.00041096,14]
[313176997,1706885451461,-182.720423,0.00041096,14]
[313176998,1706885451470,-182.720423,0.00041096,14]
[313176999,1706885451480,-182.720423,0.00041096,14]
[313177000,1706885451489,-182.720423,0.00041096,14]
[313177001,1706885451499,-182.720423,0.00041096,14]
[313177002,1706885451508,-182.720423,0.00041096,14]
[313177003,1706885451518,-182.720423,0.00041096,14]
[313177004,1706885451528,-182.720423,0.00041096,14]
[313177005,1706885451538,-182.720414,0.00041096,14]
[313177006,1706885451548,-157.924554,0.00041096,14]
[313177007,1706885451557,-298.927748,0.00041096,14]
[313177008,1706885451566,-151.0,0.00041096,14]
[313177009,1706885451576,-151.0,0.00041096,14]
[313177010,1706885451585,-201.547824,0.00041096,14]
[313177011,1706885451594,-250.611292,0.00041096,14]
[313177012,1706885451603,-83776.85,0.00041096,30]
[313177013,1706885451612,-165.588281,0.00041096,14]
[313177014,1706885451622,-165.588281,0.00041096,14]
[313177015,1706885451631,-165.588281,0.00041096,14]
[313177016,1706885451640,-165.588281,0.00041096,14]
[313177017,1706885451650,-165.588281,0.00041096,14]
[313177018,1706885451661,-165.588281,0.00041096,14]
[313177019,1706885451671,-165.588281,0.00041096,14]
[313177020,1706885451681,-165.588281,0.00041096,14]
[313177021,1706885451690,-165.588281,0.00041096,14]
[313177022,1706885451699,-165.588281,0.00041096,14]
[313177023,1706885451710,-165.588281,0.00041096,14]
[313177024,1706885451723,-165.588281,0.00041096,14]
[313177025,1706885451733,-165.588281,0.00041096,14]
[313177026,1706885451743,-165.588281,0.00041096,14]
[313177027,1706885451753,-165.588281,0.00041096,14]
[313177028,1706885451762,-165.588281,0.00041096,14]
[313177029,1706885451772,-165.588281,0.00041096,14]
[313177030,1706885451782,-165.588281,0.00041096,14]
[313177031,1706885451791,-165.588281,0.00041096,14]
[313177032,1706885451801,-165.588275,0.00041096,14]
[313177033,1706885451811,-6850.81,0.00041096,2]
[313177034,1706885451820,-151.0,0.00041096,14]
[313177035,1706885451830,-197.249542,0.00041096,14]
[313177036,1706885451840,-417.304376,0.00041096,14]
[313177037,1706885451851,-417.304376,0.00041096,14]
[313177038,1706885451861,-417.304376,0.00041096,14]
[313177039,1706885451870,-417.304376,0.00041096,14]
[313177040,1706885451880,-417.304376,0.00041096,14]
[313177041,1706885451890,-417.304376,0.00041096,14]
[313177042,1706885451900,-417.304376,0.00041096,14]
[313177043,1706885451911,-417.304376,0.00041096,14]
[313177044,1706885451921,-417.304376,0.00041096,14]
[313177045,1706885451931,-417.304376,0.00041096,14]
[313177046,1706885451941,-417.304376,0.00041096,14]
[313177047,1706885451950,-417.304376,0.00041096,14]
[313177048,1706885451960,-417.304376,0.00041096,14]
[313177049,1706885451978,-417.304376,0.00041096,14]
[313177050,1706885451990,-417.304376,0.00041096,14]
[313177051,1706885452000,-417.304376,0.00041096,14]
[313177052,1706885452010,-417.304376,0.00041096,14]
[313177053,1706885452020,-417.304376,0.00041096,14]
[313177054,1706885452030,-417.304376,0.00041096,14]
[313177055,1706885452040,-417.304379,0.00041096,14]
[313177056,1706885452050,-151.0,0.00041096,14]
[313177057,1706885452060,-151.0,0.00041096,14]
[313177058,1706885452070,-151.0,0.00041096,14]
[313177059,1706885452080,-151.0,0.00041096,14]
[313177060,1706885452089,-190.193195,0.00041096,14]
[313177061,1706885452100,-198.234614,0.00041096,7]
[313177062,1706885452109,-151.0,0.00041096,14]
[313177063,1706885452119,-151.0,0.00041096,14]
[313177064,1706885452129,-151.0,0.00041096,14]
[313177065,1706885452139,-151.0,0.00041096,14]
[313177066,1706885452148,-151.0,0.00041096,14]
[313177067,1706885452158,-197.606746,0.00041096,14]
[313177068,1706885452170,-151.0,0.00041096,14]
[313177069,1706885452297,-151.0,0.00041096,14]
[313177070,1706885452306,-151.0,0.00041096,14]
[313177071,1706885452316,-287.600169,0.00041096,14]
[313177072,1706885452325,-382.473125,0.00041096,14]
[313177073,1706885452335,-382.473125,0.00041096,14]
[313177074,1706885452344,-382.473125,0.00041096,14]
[313177075,1706885452353,-382.473125,0.00041096,14]
[313177076,1706885452362,-382.473125,0.00041096,14]
[313177077,1706885452371,-382.473125,0.00041096,14]
[313177078,1706885452380,-382.473125,0.00041096,14]
[313177079,1706885452390,-382.473125,0.00041096,14]
[313177080,1706885452399,-382.473125,0.00041096,14]
[313177081,1706885452408,-382.473125,0.00041096,14]
[313177082,1706885452419,-382.473125,0.00041096,14]
[313177083,1706885452428,-382.473125,0.00041096,14]
[313177084,1706885452437,-382.473125,0.00041096,14]
[313177085,1706885452447,-382.473125,0.00041096,14]
[313177086,1706885452456,-382.473125,0.00041096,14]
[313177087,1706885452465,-382.473125,0.00041096,14]
[313177088,1706885452474,-382.473125,0.00041096,14]
[313177089,1706885452483,-382.473125,0.00041096,14]
[313177090,1706885452493,-382.473125,0.00041096,14]
[313177091,1706885452502,-382.473118,0.00041096,14]
[313177092,1706885452511,-800.512358,0.00041096,14]
[313177093,1706885452520,-800.512358,0.00041096,14]
[313177094,1706885452530,-800.512358,0.00041096,14]
[313177095,1706885452539,-800.512358,0.00041096,14]
[313177096,1706885452548,-800.512358,0.00041096,14]
[313177097,1706885452557,-800.512358,0.00041096,14]
[313177098,1706885452567,-800.512358,0.00041096,14]
[313177099,1706885452575,-800.512358,0.00041096,14]
[313177100,1706885452585,-800.512358,0.00041096,14]
[313177101,1706885452597,-800.512358,0.00041096,14]
[313177102,1706885452606,-800.512358,0.00041096,14]
[313177103,1706885452615,-800.512358,0.00041096,14]
[313177104,1706885452626,-800.512358,0.00041096,14]
[313177105,1706885452635,-800.512358,0.00041096,14]
[313177106,1706885452645,-800.512358,0.00041096,14]
[313177107,1706885452654,-800.512358,0.00041096,14]
[313177108,1706885452664,-800.512358,0.00041096,14]
[313177109,1706885452675,-800.512358,0.00041096,14]
[313177110,1706885452685,-800.512358,0.00041096,14]
[313177111,1706885452694,-800.512352,0.00041096,14]
[313177112,1706885452705,-151.0,0.00041096,14]
[313177113,1706885452716,-158.156401,0.00041096,14]
[313177114,1706885452727,-151.0,0.00041096,14]
[313177115,1706885452737,-151.0,0.00041096,14]
[313177116,1706885452747,-151.0,0.00041096,14]
[313177117,1706885452758,-151.0,0.00041096,14]
[313177118,1706885452767,-151.0,0.00041096,14]
[313177119,1706885452776,-151.0,0.00041096,14]
[313177120,1706885452786,-151.0,0.00041096,14]
[313177121,1706885452797,-151.0,0.00041096,14]
[313177122,1706885452806,-151.0,0.00041096,14]
[313177123,1706885452815,-151.0,0.00041096,14]
[313177124,1706885452825,-151.0,0.00041096,14]
[313177125,1706885452834,-151.0,0.00041096,14]
[313177126,1706885452843,-296.111013,0.00041096,14]
[313177127,1706885452853,-151.0,0.00041096,14]
[313177128,1706885452862,-151.0,0.00041096,14]
[313177129,1706885452872,-267.828126,0.00041096,14]
[313177130,1706885452881,-151.0,0.00041096,14]
[313177131,1706885452892,-161.193908,0.00041096,14]
[313177132,1706885452901,-151.0,0.00041096,14]
[313177133,1706885452912,-151.0,0.00041096,14]
[313177134,1706885452921,-151.0,0.00041096,14]
[313177135,1706885452931,-265.775898,0.00041096,14]
[313177136,1706885452940,-151.0,0.00041096,14]
[313177137,1706885452959,-151.0,0.00041096,14]
[313177138,1706885452978,-151.0,0.00041096,14]
[313177139,1706885452993,-151.0,0.00041096,14]
[313177140,1706885453008,-151.0,0.00041096,14]
[313177141,1706885453026,-151.0,0.00041096,14]
[313177142,1706885453041,-187.843764,0.00041096,14]
[313177143,1706885453057,-151.0,0.00041096,14]
[313177144,1706885453073,-151.0,0.00041096,14]
[313177145,1706885453090,-178.848797,0.00041096,14]
[313177146,1706885453103,-151.0,0.00041096,14]
[313177147,1706885453121,-151.0,0.00041096,14]
[313177148,1706885453138,-151.0,0.00041096,14]
[313177149,1706885453153,-151.0,0.00041096,14]
[313177150,1706885453169,-151.0,0.00041096,14]
[313177151,1706885453187,-151.0,0.00041096,14]
[313177152,1706885453204,-151.0,0.00041096,14]
[313177153,1706885453215,-151.0,0.00041096,14]
[313177154,1706885453227,-151.0,0.00041096,14]
[313177155,1706885453245,-151.0,0.00041096,14]
[313177156,1706885453260,-151.0,0.00041096,14]
[313177157,1706885453273,-151.0,0.00041096,14]
[313177158,1706885453286,-150.0,0.00041096,2]
[313177159,1706885453301,-151.0,0.00041096,14]
[313177160,1706885453317,-151.0,0.00041096,14]
[313177161,1706885453331,-151.0,0.00041096,14]
[313177162,1706885453345,-151.0,0.00041096,14]
[313177163,1706885453360,-151.0,0.00041096,14]
[313177164,1706885453373,-151.0,0.00041096,14]
[313177165,1706885453386,-160.73638,0.00041096,14]
[313177166,1706885453400,-234.29605,0.00041096,14]
[313177167,1706885453414,-234.29605,0.00041096,14]
[313177168,1706885453428,-234.29605,0.00041096,14]
[313177169,1706885453441,-234.29605,0.00041096,14]
[313177170,1706885453455,-234.29605,0.00041096,14]
[313177171,1706885453469,-234.29605,0.00041096,14]
[313177172,1706885453482,-234.29605,0.00041096,14]
[313177173,1706885453495,-234.29605,0.00041096,14]
[313177174,1706885453509,-234.29605,0.00041096,14]
[313177175,1706885453522,-158.095695,0.00041096,14]
[313177176,1706885453535,-234.29605,0.00041096,14]
[313177177,1706885453548,-234.29605,0.00041096,14]
[313177178,1706885453561,-234.29605,0.00041096,14]
[313177179,1706885453574,-234.29605,0.00041096,14]
[313177180,1706885453587,-234.29605,0.00041096,14]
[313177181,1706885453602,-234.29605,0.00041096,14]
[313177182,1706885453615,-234.29605,0.00041096,14]
[313177183,1706885453628,-234.29605,0.00041096,14]
[313177184,1706885453642,-234.29605,0.00041096,14]
[313177185,1706885453655,-234.29605,0.00041096,14]
[313177186,1706885453668,-234.29606,0.00041096,14]
[313177187,1706885453681,-151.0,0.00041096,14]
[313177188,1706885453695,-151.0,0.00041096,14]
[313177189,1706885453710,-151.0,0.00041096,14]
[313177190,1706885453726,-151.0,0.00041096,14]
[313177191,1706885453742,-293.737147,0.00041096,14]
[313177192,1706885453758,-1711.137957,0.00041096,14]
[313177193,1706885453770,-1711.137957,0.00041096,14]
[313177194,1706885453782,-1711.137957,0.00041096,14]
[313177195,1706885453796,-1711.137957,0.00041096,14]
[313177196,1706885453809,-1711.137957,0.00041096,14]
[313177197,1706885453822,-1711.137957,0.00041096,14]
[313177198,1706885453835,-1711.137957,0.00041096,14]
[313177199,1706885453851,-1711.137957,0.00041096,14]
[313177200,1706885453871,-1711.137957,0.00041096,14]
[313177201,1706885453881,-1711.137957,0.00041096,14]
[313177202,1706885453890,-1711.137957,0.00041096,14]
[313177203,1706885453899,-150.0,0.00041096,2]
[313177204,1706885454048,-155.0,0.00041097,2]
[313177205,1706885454066,-836.09,0.000411,7]
[313177206,1706885454077,-305.21,0.000411,7]
[313177207,1706885454087,-545.22,0.000411,7]
[313177208,1706885454097,-1407.42044827,0.000411,2]
[313177209,1706885454107,-1503.0,0.000411,2]
[313177210,1706885454116,-562.0,0.000411,2]
[313177211,1706885454125,-279.59701577,0.000411,2]
[313177212,1706885454134,-202.00374963,0.000411,2]
[313177213,1706885454144,-3614.91,0.000411,2]
[313177214,1706885454154,-3614.91,0.000411,2]
[313177215,1706885454164,-3614.91,0.000411,2]
[313177216,1706885454174,-3614.91,0.000411,2]
[313177217,1706885454185,-3614.91,0.000411,2]
[313177218,1706885454195,-3614.91,0.000411,2]
[313177219,1706885454204,-3614.91,0.000411,2]
[313177220,1706885454214,-3614.91,0.000411,2]
[313177221,1706885454226,-3614.91,0.000411,2]
[313177222,1706885454236,-3614.91,0.000411,2]
[313177223,1706885454246,-150.0,0.00041165,30]
[313177224,1706885454259,-157.0202,0.00041198,18]
[313177225,1706885454270,-745.006193,0.00041331,30]
[313177226,1706885454279,-391.971729,0.00041331,30]
[313177227,1706885454289,-157.61,0.0004137,2]
[313177228,1706885454300,-314.69,0.0004137,2]
[313177229,1706885454309,-150.0,0.0004137,2]
[313177230,1706885454320,-410.28,0.0004137,2]
[313177231,1706885454329,-150.0,0.0004137,2]
[313177232,1706885454338,-341.64,0.0004137,2]
[313177233,1706885454348,-417.05,0.0004137,2]
[313177234,1706885454359,-410.28,0.0004137,2]
[313177235,1706885454369,-150.0,0.0004137,2]
[313177236,1706885454379,-341.64,0.0004137,2]
[313177237,1706885454389,-417.05,0.0004137,2]
[313177238,1706885454398,-150.0,0.0004137,2]
[313177239,1706885454408,-409.64,0.0004137,2]
[313177240,1706885454419,-150.0,0.0004137,2]
[313177241,1706885454429,-341.64,0.0004137,2]
[313177242,1706885454438,-417.05,0.0004137,2]
[313177243,1706885454448,-150.0,0.0004137,2]
[313177244,1706885454457,-417.05,0.0004137,2]
[313177245,1706885454467,-341.64,0.0004137,2]
[313177246,1706885454476,-150.0,0.0004137,2]
[313177247,1706885454486,-150.0,0.0004137,2]
[313177248,1706885454495,-664.0837944,0.00041407,13]
[313177249,1706885454505,-157.0202,0.00041498,18]
[313177250,1706885454514,-184.81961446,0.00041522,4]
[313177251,1706885454523,-75000.0,0.00041534,15]
[313177252,1706885454532,-791.624622,0.00041567,30]
[313177253,1706885454542,-153.0,0.00041596,2]
[313177254,1706885454551,-1000.0,0.000416,2]
[313177255,1706885454563,-200.0,0.000417,30]
[313177256,1706885454572,-5905.75161611,0.00041724,5]
[313177257,1706885454582,-157.0202,0.00041798,18]
[313177258,1706885454592,-745.006193,0.00041829,30]
[313177259,1706885454602,-391.971729,0.00041829,30]
[313177260,1706885454612,-150.0,0.00041829,30]
[313177261,1706885454622,-1996.84,0.00041885,2]
[313177262,1706885454632,-1119.83,0.000419,4]
[313177263,1706885454644,-1119.83,0.000419,4]
[313177264,1706885454655,-1119.83,0.000419,4]
[313177265,1706885454664,-1119.83,0.000419,4]
[313177266,1706885454675,-1119.83,0.000419,4]
[313177267,1706885454685,-1119.83,0.000419,4]
[313177268,1706885454695,-1119.83,0.000419,4]
[313177269,1706885454705,-1119.83,0.000419,4]
[313177270,1706885454718,-1119.83,0.000419,4]
[313177271,1706885454727,-1119.83,0.000419,4]
[313177272,1706885454738,-1119.83,0.000419,4]
[313177273,1706885454751,-1119.83,0.000419,4]
[313177274,1706885454761,-1119.83,0.000419,4]
[313177275,1706885454770,-1119.83,0.000419,4]
[313177276,1706885454780,-1119.83,0.000419,4]
[313177277,1706885454790,-1119.83,0.000419,4]
[313177278,1706885454800,-1119.83,0.000419,4]
[313177279,1706885454810,-1119.83,0.000419,4]
[313177280,1706885454820,-1119.83,0.000419,4]
[313177281,1706885454829,-1119.83,0.000419,4]
[313177282,1706885454839,-100000.0,0.00042,12]
[313177283,1706885454848,-300.0,0.00042,2]
[313177284,1706885454857,-5007.29,0.00042,2]
[313177285,1706885454867,-1396.77773344,0.00042,30]
[313177286,1706885454877,-734.79625078,0.00042,4]
[313177287,1706885454886,-16386.56758155,0.00042,2]
[313177288,1706885454896,-687.0245,0.00042,120]
[313177289,1706885454906,-2000.0,0.00042,2]
[313177290,1706885454917,-500.0,0.00042,14]
[313177291,1706885454926,-200.0,0.00042,2]
[313177292,1706885454936,-1276.424685,0.00042,2]
[313177293,1706885454946,-1000.0,0.00042,4]
[313177294,1706885454956,-791.624622,0.00042074,30]
[313177295,1706885454966,-666.0,0.000421,4]
[313177296,1706885454976,-150.0,0.00042177,2]
[313177297,1706885454985,-417.05,0.00042192,2]
[313177298,1706885454994,-150.0,0.00042192,2]
[313177299,1706885455004,-341.64,0.00042192,2]
[313177300,1706885455013,-341.64,0.00042192,2]
[313177301,1706885455023,-150.0,0.00042192,2]
[313177302,1706885455033,-417.05,0.00042192,2]
[313177303,1706885455042,-417.05,0.00042192,2]
[313177304,1706885455053,-341.64,0.00042192,2]
[313177305,1706885455063,-417.05,0.00042192,2]
[313177306,1706885455072,-341.64,0.00042192,2]
[313177307,1706885455081,-420.36,0.00042192,2]
[313177308,1706885455092,-341.64,0.00042192,2]
[313177309,1706885455101,-417.05,0.00042192,2]
[313177310,1706885455110,-420.36,0.00042192,2]
[313177311,1706885455119,-225.7,0.00042192,2]
[313177312,1706885455129,-420.36,0.00042192,2]
[313177313,1706885455139,-340.14,0.00042192,2]
[313177314,1706885455155,-417.05,0.00042192,2]
[313177315,1706885455172,-420.36,0.00042192,2]
[313177316,1706885455182,-420.36,0.00042192,2]
[313177317,1706885455191,-812.21,0.00042192,2]
[313177318,1706885455201,-420.36,0.00042192,2]
[313177319,1706885455212,-420.36,0.00042192,2]
[313177320,1706885455222,-420.36,0.00042192,2]
[313177321,1706885455232,-420.36,0.00042192,2]
[313177322,1706885455242,-420.36,0.00042192,2]
[313177323,1706885455251,-420.36,0.00042192,2]
[313177324,1706885455262,-420.36,0.00042192,2]
[313177325,1706885455271,-420.36,0.00042192,2]
[313177326,1706885455281,-420.36,0.00042192,2]
[313177327,1706885455291,-420.36,0.00042192,2]
[313177328,1706885455302,-420.36,0.00042192,2]
[313177329,1706885455311,-420.36,0.00042192,2]
[313177330,1706885455321,-420.36,0.00042192,2]
[313177331,1706885455331,-420.36,0.00042192,2]
[313177332,1706885455341,-420.36,0.00042192,2]
[313177333,1706885455351,-157.0202,0.00042198,20]
[313177334,1706885455361,-1000.0,0.00042205,2]
[313177335,1706885455371,-836.09,0.000423,7]
[313177336,1706885455380,-305.21,0.000423,7]
[313177337,1706885455390,-226.11911897,0.0004234,30]
[313177338,1706885455399,-943.42888016,0.00042386,30]
[313177339,1706885455409,-154.28705535,0.00042447,15]
[313177340,1706885455421,-155.0,0.00042467,2]
[313177341,1706885455431,-306.09,0.00042476,2]
[313177342,1706885455442,-11074.0,0.0004249,2]
[313177343,1706885455452,-157.0202,0.00042498,20]
[313177344,1706885455462,-300.63022146,0.00042512,4]
[313177345,1706885455472,-300.63022146,0.00042512,4]
[313177346,1706885455482,-239.92081071,0.00042512,4]
[313177347,1706885455492,-239.92081071,0.00042512,4]
[313177348,1706885455501,-4778.73649086,0.00042514,18]
[313177349,1706885455510,-4143.18636819,0.00042514,18]
[313177350,1706885455520,-4303.77651825,0.00042514,18]
[313177351,1706885455530,-7479.08737971,0.00042514,18]
[313177352,1706885455540,-791.624622,0.00042581,30]
[313177353,1706885455550,-10309.0,0.0004269,2]
[313177354,1706885455560,-943.42888016,0.00042742,30]
[313177355,1706885455569,-924.1575,0.00042796,7]
[313177356,1706885455578,-219.11253093,0.00042796,21]
[313177357,1706885455588,-4776.9681647,0.00042796,7]
[313177358,1706885455598,-45542.06176848,0.00042796,7]
[313177359,1706885455607,-82928.79053503,0.00042796,2]
[313177360,1706885455616,-7197.0,0.00042796,4]
[313177361,1706885455625,-232.61265303,0.00042796,120]
[313177362,1706885455634,-157.0,0.00042796,120]
[313177363,1706885455643,-179.12835543,0.00042796,120]
[313177364,1706885455653,-231.20856451,0.00042796,30]
[313177365,1706885455663,-1000.0,0.00042796,2]
[313177366,1706885455673,-154.85902515,0.00042796,2]
[313177367,1706885455682,-1000.0,0.00042796,30]
[313177368,1706885455691,-181.88200788,0.00042796,60]
[313177369,1706885455700,-594.29433632,0.00042796,90]
[313177370,1706885455710,-2452.60891853,0.00042796,2]
[313177371,1706885455721,-368.68229683,0.00042796,120]
[313177372,1706885455731,-252.60759344,0.00042796,30]
[313177373,1706885455739,-431.11735391,0.00042796,2]
[313177374,1706885455749,-20397.29443207,0.00042796,2]
[313177375,1706885455759,-1024.30418409,0.00042796,2]
[313177376,1706885455769,-4339.12819081,0.00042796,2]
[313177377,1706885455779,-2500.0,0.00042796,2]
[313177378,1706885455788,-556.27576077,0.00042796,2]
[313177379,1706885455797,-26687.89190153,0.00042796,2]
[313177380,1706885455807,-2284.92602711,0.00042796,2]
[313177381,1706885455817,-231.15760395,0.00042796,2]
[313177382,1706885455826,-1578.74163794,0.00042796,2]
[313177383,1706885455835,-517.62003549,0.00042796,2]
[313177384,1706885455846,-169038.13896471,0.00042796,2]
[313177385,1706885455856,-437336.05452686,0.00042796,2]
[313177386,1706885455865,-163.77087365,0.00042796,30]
[313177387,1706885455874,-364499.92064351,0.00042796,30]
[313177388,1706885456181,-288.41386898,0.00042796,30]
[313177389,1706885456385,-1601.27462,0.00022782,2]
[313177390,1706885456397,-419.93,0.00022782,2]
[313177391,1706885456409,-447.98429376,0.00022782,2]
[313177392,1706885456422,-688.78382543,0.00022782,2]
[313177393,1706885456431,-811.27117457,0.00041096,14]
[313177394,1706885456702,-244.74021784,0.00022999,2]
[313177395,1706885456716,-253.99078331,0.00036,2]
[313177396,1706885456725,-253.99078331,0.00036,2]
[313177397,1706885456734,-166.89514221,0.00036,2]
[313177398,1706885456746,-87.0956411,0.00036,2]
[313177399,1706885456756,-189.9643579,0.00036,2]
[313177400,1706885456767,-64.02642541,0.00036,2]
[313177401,1706885456777,-253.99078331,0.00036,2]
[313177402,1706885456786,-253.99078331,0.00036,2]
[313177403,1706885456796,-253.99078331,0.00036,2]
[313177404,1706885456807,-253.99078331,0.00036,2]
[313177405,1706885456816,-253.99078331,0.00036,2]
[313177406,1706885456825,-253.99078331,0.00036,2]
[313177407,1706885456835,-8030.38955848,0.0003888,2]
[313177408,1706885456845,-899.86678243,0.00041096,14]
[313177409,1706885456854,-1711.137957,0.00041096,14]
[313177410,1706885456864,-1711.137957,0.00041096,14]
[313177411,1706885456874,-1711.137957,0.00041096,14]
[313177412,1706885456883,-151.0,0.00041096,14]
[313177413,1706885456894,-1711.137957,0.00041096,14]
[313177414,1706885456903,-151.0,0.00041096,14]
[313177415,1706885456912,-1711.137957,0.00041096,14]
[313177416,1706885456924,-151.0,0.00041096,14]
[313177417,1706885456934,-864.96523678,0.00041096,14]
[313177418,1706885456946,-529.35007577,0.00041096,14]
[313177419,1706885457060,-316.82264445,0.00041096,14]
[313177420,1706885457070,-151.0,0.00041096,14]
[313177421,1706885457080,-1711.137957,0.00041096,14]
[313177422,1706885457090,-151.0,0.00041096,14]
[313177423,1706885457099,-1711.137956,0.00041096,14]
[313177424,1706885457108,-151.0,0.00041096,14]
[313177425,1706885457119,-151.0,0.00041096,14]
[313177426,1706885457128,-151.0,0.00041096,14]
[313177427,1706885457137,-151.0,0.00041096,14]
[313177428,1706885457147,-151.0,0.00041096,14]
[313177429,1706885457156,-151.0,0.00041096,14]
[313177430,1706885457167,-151.0,0.00041096,14]
[313177431,1706885457176,-151.0,0.00041096,14]
[313177432,1706885457185,-151.0,0.00041096,14]
[313177433,1706885457195,-135093.40445566,0.00042796,30]
[313177434,1706885457204,-4803.92592441,0.00042796,2]
[313177435,1706885457214,-173.28022128,0.00042796,2]
[313177436,1706885457223,-1002.06312334,0.00042796,2]
[313177437,1706885457232,-161.05703542,0.00042796,2]
[313177438,1706885457242,-8854.20738803,0.00042796,2]
[313177439,1706885457251,-1257.36438578,0.00042796,2]
[313177440,1706885457260,-2865.55368926,0.00042796,2]
[313177441,1706885457276,-253.99078331,0.00036,2]
[313177442,1706885457285,-1874.78844607,0.00042796,2]
[313177443,1706885457294,-887.21623177,0.00042796,2]
[313177444,1706885457309,-3583.57340007,0.00042796,2]
[313177445,1706885457530,-150.0,0.00030137,2]
[313177446,1706885457540,-150.0,0.00030714,2]
[313177447,1706885457549,-150.0,0.00031291,2]
[313177448,1706885457558,-572.0,0.0003288,5]
[313177449,1706885457568,-253.99078331,0.00036,2]
[313177450,1706885457577,-61.62797175,0.00036,2]
[313177451,1706885457589,-192.36281156,0.00036,2]
[313177452,1706885457598,-253.99078331,0.00036,2]
[313177453,1706885457607,-253.99078331,0.00036,2]
[313177454,1706885457616,-253.99078331,0.00036,2]
[313177455,1706885457625,-253.99078331,0.00036,2]
[313177456,1706885457634,-253.99078331,0.00036,2]
[313177457,1706885457644,-253.99078331,0.00036,2]
[313177458,1706885457653,-253.99078331,0.00036,2]
[313177459,1706885457662,-164.35,0.00036438,2]
[313177460,1706885457672,-151.0,0.00041096,14]
[313177461,1706885457681,-151.0,0.00041096,14]